fUST/lending_fUST_20250205
["ID","MTS","AMOUNT","RATE_DAILY","PERIOD"]
[351650531,1738684891356,160.0,0.0001951,120]
[351650532,1738684951899,160.0,0.00019414,120]
[351650534,1738685018125,158.0,0.00016,90]
[351650535,1738685048839,162.266243,0.00013973,2]
[351650536,1738685071349,160.0,0.00020186,120]
[351650537,1738685084055,335143.71829521,0.0002045,120]
[351650538,1738685084081,6120.3,0.0002045,120]
[351650539,1738685084103,612.05,0.0002045,120]
[351650540,1738685084135,27111.93170479,0.0002045,120]
[351650541,1738685132831,160.0,0.00019446,120]
[351650542,1738685191358,160.0,0.00019104,120]
[351650612,1738685432231,-292.311974,0.00015277,2]
[351650614,1738685432240,-207.688026,0.00015281,2]
[351650616,1738685432252,-92.311974,0.00015281,2]
[351650618,1738685432262,-2039.16197696,0.00015282,2]
[351651118,1738685438015,-464.96799901,0.00015282,2]
[351651612,1738685443107,-4071.02683923,0.00015282,2]
[351651620,1738685443180,-13522.8853723,0.00015282,2]
[351651622,1738685443190,-514.5430409,0.00015827,2]
[351651624,1738685443201,-1000.0,0.00016,5]
[351651626,1738685443211,-1060.27597157,0.00016125,2]
[351651628,1738685443220,-1060.27597157,0.00016225,2]
[351651630,1738685443231,-12543.1168521,0.00016303,2]
[351651632,1738685443241,-1060.27597157,0.00016325,2]
[351651634,1738685443250,-220.19564891,0.00016338,2]
[351651637,1738685443260,-396.0,0.0001636,2]
[351651640,1738685443269,-4403.284995,0.000164,2]
[351651642,1738685443278,-1060.27597157,0.00016425,2]
[351651645,1738685443287,-190.81073941,0.00016438,2]
[351651648,1738685443297,-430.72343949,0.00016438,2]
[351651650,1738685443310,-260.12197243,0.00016438,2]
[351651652,1738685443319,-500.0,0.00016438,2]
[351651655,1738685443329,-500.0,0.00016438,2]
[351651658,1738685443339,-500.0,0.00016438,2]
[351651661,1738685443348,-500.0,0.00016438,2]
[351651663,1738685443358,-500.0,0.00016438,2]
[351651665,1738685443367,-500.0,0.00016438,2]
[351651667,1738685443376,-356.163136,0.00016438,2]
[351651669,1738685443386,-500.0,0.00016438,2]
[351651671,1738685443395,-932.86,0.00016438,2]
[351651673,1738685443405,-500.0,0.00016438,2]
[351651675,1738685443415,-500.0,0.00016438,2]
[351651677,1738685443427,-500.0,0.00016438,2]
[351651679,1738685443437,-1189.62,0.00016438,2]
[351651682,1738685443447,-1294.69,0.00016438,2]
[351651684,1738685443457,-500.0,0.00016438,2]
[351651685,1738685443466,-500.0,0.00016438,2]
[351651687,1738685443476,-500.0,0.00016438,2]
[351651689,1738685443485,-500.0,0.00016438,2]
[351651692,1738685443495,-500.0,0.00016438,2]
[351651694,1738685443505,-677.23,0.00016438,2]
[351651696,1738685443515,-500.0,0.00016438,2]
[351651698,1738685443525,-500.0,0.00016438,2]
[351651699,1738685443536,-500.0,0.00016438,2]
[351651702,1738685443547,-1294.44,0.00016438,2]
[351651704,1738685443558,-500.0,0.00016438,2]
[351651705,1738685443567,-500.0,0.00016438,2]
[351651707,1738685443577,-605.19151781,0.00016438,2]
[351651709,1738685443587,-500.0,0.00016438,2]
[351651711,1738685443600,-1016.74,0.00016438,2]
[351651714,1738685443625,-500.0,0.00016438,2]
[351651715,1738685443636,-538.68,0.00016438,2]
[351651716,1738685443646,-2999.41,0.00016438,2]
[351651717,1738685443656,-500.0,0.00016438,2]
[351651718,1738685443666,-550.84,0.00016438,2]
[351651719,1738685443676,-500.0,0.00016438,2]
[351651720,1738685443686,-500.0,0.00016438,2]
[351651721,1738685443696,-390.16312571,0.00016438,2]
[351651722,1738685443706,-500.0,0.00016438,2]
[351651724,1738685443716,-533.12,0.00016438,2]
[351651739,1738685443859,-500.0,0.00016438,2]
[351651741,1738685443870,-500.0,0.00016438,2]
[351651743,1738685443881,-500.0,0.00016438,2]
[351651745,1738685443891,-500.0,0.00016438,2]
[351651747,1738685443901,-553.89,0.00016438,2]
[351651749,1738685443911,-500.0,0.00016438,2]
[351651751,1738685443921,-500.0,0.00016438,2]
[351651753,1738685443933,-500.0,0.00016438,2]
[351651755,1738685443943,-500.0,0.00016438,2]
[351651757,1738685443952,-968.27,0.00016438,2]
[351651759,1738685443962,-500.0,0.00016438,2]
[351651761,1738685443973,-500.0,0.00016438,2]
[351651763,1738685443983,-500.0,0.00016438,2]
[351651765,1738685443992,-500.0,0.00016438,2]
[351651768,1738685444003,-500.0,0.00016438,2]
[351651770,1738685444013,-500.0,0.00016438,2]
[351651771,1738685444024,-810.34,0.00016438,2]
[351651772,1738685444034,-500.0,0.00016438,2]
[351651773,1738685444046,-1057.52,0.00016438,2]
[351651774,1738685444056,-500.0,0.00016438,2]
[351651775,1738685444066,-500.69347513,0.00016438,2]
[351651776,1738685444076,-500.0,0.00016438,2]
[351651777,1738685444086,-500.0,0.00016438,2]
[351651778,1738685444098,-500.0,0.00016438,2]
[351651779,1738685444108,-500.0,0.00016438,2]
[351651780,1738685444119,-1503.14,0.00016438,2]
[351651781,1738685444129,-500.0,0.00016438,2]
[351651782,1738685444138,-1228.3,0.00016438,2]
[351651783,1738685444148,-717.9,0.00016438,2]
[351651784,1738685444159,-500.0,0.00016438,2]
[351651785,1738685444170,-500.0,0.00016438,2]
[351651786,1738685444182,-1501.6,0.00016438,2]
[351651787,1738685444192,-500.0,0.00016438,2]
[351651788,1738685444203,-500.0,0.00016438,2]
[351651789,1738685444213,-500.0,0.00016438,2]
[351651790,1738685444224,-1042.99,0.00016438,2]
[351651791,1738685444234,-500.0,0.00016438,2]
[351651792,1738685444245,-500.0,0.00016438,2]
[351651793,1738685444256,-1110.71,0.00016438,2]
[351651794,1738685444266,-500.0,0.00016438,2]
[351651795,1738685444275,-3999.56,0.00016438,2]
[351651796,1738685444285,-500.0,0.00016438,2]
[351651797,1738685444295,-500.0,0.00016438,2]
[351651798,1738685444306,-1263.36,0.00016438,2]
[351651799,1738685444316,-500.0,0.00016438,2]
[351651800,1738685444326,-500.0,0.00016438,2]
[351651801,1738685444337,-540.94210851,0.00016438,2]
[351651802,1738685444348,-500.0,0.00016438,2]
[351651803,1738685444358,-500.0,0.00016438,2]
[351651804,1738685444367,-953.78,0.00016438,2]
[351651805,1738685444378,-500.0,0.00016438,2]
[351651806,1738685444388,-500.0,0.00016438,2]
[351651807,1738685444398,-500.0,0.00016438,2]
[351651808,1738685444409,-833.32,0.00016438,2]
[351651809,1738685444420,-1448.74,0.00016438,2]
[351651810,1738685444431,-500.0,0.00016438,2]
[351651811,1738685444440,-500.0,0.00016438,2]
[351651812,1738685444451,-10254.72,0.00016438,2]
[351651813,1738685444462,-500.0,0.00016438,2]
[351651814,1738685444471,-500.0,0.00016438,2]
[351651815,1738685444482,-2287.39,0.00016438,2]
[351651816,1738685444493,-500.0,0.00016438,2]
[351651817,1738685444503,-697.17,0.00016438,2]
[351651818,1738685444513,-500.0,0.00016438,2]
[351651819,1738685444523,-500.0,0.00016438,2]
[351651820,1738685444533,-1099.06,0.00016438,2]
[351651821,1738685444543,-1386.03,0.00016438,2]
[351651822,1738685444553,-1429.26,0.00016438,2]
[351651823,1738685444563,-500.0,0.00016438,2]
[351651824,1738685444573,-339.91960988,0.00016438,2]
[351651825,1738685444586,-500.0,0.00016438,2]
[351651826,1738685444596,-1083.74,0.00016438,2]
[351651827,1738685444606,-1081.14,0.00016438,2]
[351651828,1738685444615,-500.0,0.00016438,2]
[351651829,1738685444626,-500.0,0.00016438,2]
[351651830,1738685444636,-500.0,0.00016438,2]
[351651831,1738685444646,-500.0,0.00016438,2]
[351651832,1738685444657,-500.0,0.00016438,2]
[351651833,1738685444667,-509.42,0.00016438,2]
[351651834,1738685444678,-500.0,0.00016438,2]
[351651835,1738685444688,-6487.03,0.00016438,2]
[351651836,1738685444699,-500.0,0.00016438,2]
[351651837,1738685444709,-2011.18,0.00016438,2]
[351651838,1738685444719,-500.0,0.00016438,2]
[351651839,1738685444729,-1414.72,0.00016438,2]
[351651840,1738685444740,-500.0,0.00016438,2]
[351651841,1738685444750,-2527.21,0.00016438,2]
[351651842,1738685444759,-606.05,0.00016438,2]
[351651843,1738685444769,-3060.62,0.00016438,2]
[351651844,1738685444780,-5247.14,0.00016438,2]
[351651845,1738685444790,-3613.56,0.00016438,2]
[351651846,1738685444800,-1507.98,0.00016438,2]
[351651847,1738685444810,-2766.22,0.00016438,2]
[351651848,1738685444820,-500.0,0.00016438,2]
[351651849,1738685444830,-500.0,0.00016438,2]
[351651850,1738685444840,-397.16419567,0.00016438,2]
[351651851,1738685444849,-16542.63,0.00016438,2]
[351651852,1738685444859,-1009.72529375,0.00016438,7]
[351651853,1738685444869,-567.83064426,0.00016438,2]
[351651854,1738685444882,-105.78935574,0.00016438,2]
[351651855,1738685444891,-500.0,0.00016438,2]
[351651856,1738685444901,-1281.3,0.00016438,2]
[351651857,1738685444910,-320.08531262,0.00016438,2]
[351651982,1738685858633,162.266243,0.00013973,2]
[351652001,1738686632218,-1338.9639668,0.00015584,2]
[351652003,1738686632229,-12.67444015,0.0001596,2]
[351652008,1738686632389,-376.567,0.0001596,2]
[351652009,1738686632402,-16.75185607,0.0001596,2]
[351652010,1738686632412,-251.8324959,0.0001622,2]
[351652011,1738686632422,-300.0,0.00016289,2]
[351652012,1738686632432,-13258.95722438,0.0001629,2]
[351652013,1738686632442,-220.19564891,0.00016338,2]
[351652014,1738686632453,-33131.24437819,0.0001643,2]
[351652025,1738686638217,-3987.57932694,0.0001643,2]
[351652026,1738686638272,-596.59801914,0.0001643,2]
[351652027,1738686638285,-301.79,0.0001643,2]
[351652040,1738686642413,-6564.25376555,0.0001643,2]
[351652041,1738686642422,-9728.62074191,0.00016437,2]
[351652258,1738686959538,162.266243,0.00013973,2]
[351652261,1738687223354,198.1,0.00015012,2]
[351652262,1738687785197,162.266243,0.00013973,2]
[351652306,1738687832558,-1666.5857921,0.0001613,10]
[351652700,1738687838383,-279.73935139,0.0001613,10]
[351652701,1738687838438,-3541.75616097,0.0001613,10]
[351652702,1738687838452,-1017.86493271,0.00016135,2]
[351652703,1738687838461,-1017.86493271,0.00016235,2]
[351652704,1738687838471,-1017.86493271,0.00016335,2]
[351652705,1738687838480,-300.0,0.00016373,2]
[351652706,1738687838490,-13258.95722438,0.00016374,2]
[351652707,1738687838500,-151.0,0.00016428,2]
[351652709,1738687838510,-1017.86493271,0.00016435,2]
[351652711,1738687838521,-16934.79823462,0.00016437,2]
[351652896,1738687840431,-4702.0724097,0.00016437,2]
[351652900,1738687840484,-43783.62068637,0.00016437,2]
[351652902,1738687840494,-500.0,0.00016438,2]
[351652904,1738687840504,-500.0,0.00016438,2]
[351652905,1738687840514,-500.0,0.00016438,2]
[351652906,1738687840524,-500.0,0.00016438,2]
[351652907,1738687840534,-500.0,0.00016438,2]
[351652908,1738687840543,-500.0,0.00016438,2]
[351652909,1738687840553,-503.59471094,0.00016438,2]
[351652910,1738687840562,-500.0,0.00016438,2]
[351652911,1738687840572,-1510.98,0.00016438,2]
[351652912,1738687840582,-500.0,0.00016438,2]
[351652913,1738687840594,-3541.75,0.00016438,2]
[351652914,1738687840604,-500.0,0.00016438,2]
[351652915,1738687840614,-313.61657474,0.00016438,2]
[351652916,1738687840624,-500.0,0.00016438,2]
[351652917,1738687840633,-500.0,0.00016438,2]
[351652918,1738687840643,-500.0,0.00016438,2]
[351652919,1738687840653,-500.0,0.00016438,2]
[351652920,1738687840663,-500.0,0.00016438,2]
[351652921,1738687840672,-500.0,0.00016438,2]
[351652922,1738687840682,-500.0,0.00016438,2]
[351652923,1738687840691,-500.0,0.00016438,2]
[351652924,1738687840701,-664.29,0.00016438,2]
[351652925,1738687840711,-500.0,0.00016438,2]
[351652926,1738687840721,-500.0,0.00016438,2]
[351652927,1738687840730,-1240.51,0.00016438,2]
[351652928,1738687840740,-500.0,0.00016438,2]
[351652929,1738687840750,-500.0,0.00016438,2]
[351652930,1738687840759,-500.0,0.00016438,2]
[351652931,1738687840769,-500.0,0.00016438,2]
[351652932,1738687840779,-516.24,0.00016438,2]
[351652933,1738687840788,-500.0,0.00016438,2]
[351652934,1738687840798,-995.21,0.00016438,2]
[351652935,1738687840807,-527.88,0.00016438,2]
[351652936,1738687840817,-500.0,0.00016438,2]
[351652937,1738687840826,-2874.44,0.00016438,2]
[351652938,1738687840837,-510.9,0.00016438,2]
[351652939,1738687840848,-500.0,0.00016438,2]
[351652940,1738687840857,-500.0,0.00016438,2]
[351652941,1738687840867,-500.0,0.00016438,2]
[351652942,1738687840877,-500.0,0.00016438,2]
[351652943,1738687840887,-530.81,0.00016438,2]
[351652944,1738687840897,-500.0,0.00016438,2]
[351652945,1738687840906,-500.0,0.00016438,2]
[351652946,1738687840916,-500.0,0.00016438,2]
[351652947,1738687840928,-500.0,0.00016438,2]
[351652948,1738687840938,-500.0,0.00016438,2]
[351652949,1738687840947,-500.0,0.00016438,2]
[351652950,1738687840957,-500.0,0.00016438,2]
[351652951,1738687840966,-797.41,0.00016438,2]
[351652952,1738687840976,-948.76,0.00016438,2]
[351652953,1738687840986,-500.0,0.00016438,2]
[351652954,1738687840995,-1034.29,0.00016438,2]
[351652955,1738687841006,-500.0,0.00016438,2]
[351652956,1738687841016,-500.0,0.00016438,2]
[351652957,1738687841026,-515.88896787,0.00016438,2]
[351652958,1738687841035,-687.99,0.00016438,2]
[351652959,1738687841045,-914.82,0.00016438,2]
[351652960,1738687841054,-500.0,0.00016438,2]
[351652961,1738687841064,-500.0,0.00016438,2]
[351652962,1738687841073,-500.0,0.00016438,2]
[351652963,1738687841083,-136.99905947,0.00016438,2]
[351652981,1738687843462,-363.00094053,0.00016438,2]
[351652982,1738687843473,-500.0,0.00016438,2]
[351652983,1738687843482,-455.42794334,0.00016438,2]
[351652984,1738687843493,-83.26815246,0.00016438,2]
[351652997,1738688592001,500.0,0.00014164,2]
[351652999,1738688946143,-300.0,0.00015199,2]
[351653000,1738688946166,-1252.44147688,0.000152,2]
[351653037,1738689032727,-300.0,0.00015199,2]
[351653038,1738689032737,-12030.69104872,0.000152,2]
[351653039,1738689032748,-273.3047912,0.00015345,2]
[351653040,1738689032758,-250.0,0.00015358,2]
[351653041,1738689032772,-194.6605941,0.00015419,2]
[351653042,1738689032783,-9113.0,0.00016,2]
[351653043,1738689032793,-724.70709503,0.0001603,2]
[351653044,1738689032803,-977.1503354,0.0001617,2]
[351653045,1738689032812,-977.1503354,0.0001627,2]
[351653046,1738689032822,-804.5483165,0.00016273,2]
[351653047,1738689032832,-1021.79118675,0.0001632,2]
[351653048,1738689032841,-977.1503354,0.0001637,2]
[351653049,1738689032850,-13258.95722438,0.00016381,2]
[351653050,1738689032860,-3000.0,0.000164,2]
[351653051,1738689032875,-152.0,0.00016403,2]
[351653052,1738689032884,-3000.0,0.0001641,2]
[351653053,1738689032894,-3000.0,0.0001642,2]
[351653054,1738689032903,-830.4897553,0.00016423,2]
[351653055,1738689032914,-3596.598019,0.0001643,2]
[351653056,1738689032923,-151.0,0.00016437,2]
[351653059,1738689032933,-500.0,0.00016437,2]
[351653063,1738689032944,-500.0,0.00016437,2]
[351653066,1738689032954,-500.0,0.00016437,2]
[351653069,1738689032965,-500.0,0.00016437,2]
[351653072,1738689032975,-500.0,0.00016437,2]
[351653075,1738689032984,-441.01218714,0.00016437,2]
[351653078,1738689032994,-500.0,0.00016437,2]
[351653081,1738689033004,-500.0,0.00016437,2]
[351653084,1738689033014,-500.0,0.00016437,2]
[351653087,1738689033025,-500.0,0.00016438,2]
[351653090,1738689033035,-500.0,0.00016438,2]
[351653093,1738689033045,-503.39640217,0.00016438,2]
[351653095,1738689033056,-500.0,0.00016438,2]
[351653097,1738689033067,-500.0,0.00016438,2]
[351653099,1738689033077,-500.0,0.00016438,2]
[351653101,1738689033088,-500.0,0.00016438,2]
[351653103,1738689033098,-500.0,0.00016438,2]
[351653105,1738689033109,-500.0,0.00016438,2]
[351653107,1738689033122,-500.0,0.00016438,2]
[351653109,1738689033132,-509.73929092,0.00016438,2]
[351653111,1738689033142,-508.73053289,0.00016438,2]
[351653113,1738689033152,-502.28056939,0.00016438,2]
[351653115,1738689033163,-500.0,0.00016438,2]
[351653117,1738689033173,-500.0,0.00016438,2]
[351653119,1738689033183,-502.01452723,0.00016438,2]
[351653121,1738689033193,-151.0,0.00016438,2]
[351653123,1738689033203,-151.0,0.00016438,2]
[351653125,1738689033213,-151.0,0.00016438,2]
[351653127,1738689033222,-151.0,0.00016438,2]
[351653129,1738689033235,-565.69982765,0.00016438,2]
[351653131,1738689033246,-500.434845,0.00016438,2]
[351653134,1738689033262,-501.36623284,0.00016438,2]
[351653136,1738689033272,-500.0,0.00016438,2]
[351653138,1738689033283,-500.0,0.00016438,2]
[351653140,1738689033295,-500.0,0.00016438,2]
[351653142,1738689033305,-200.9,0.00016438,2]
[351653144,1738689033316,-502.68687714,0.00016438,2]
[351653146,1738689033327,-500.22066645,0.00016438,2]
[351653148,1738689033337,-500.0,0.00016438,2]
[351653151,1738689033347,-3394.18,0.00016438,2]
[351653153,1738689033357,-500.0,0.00016438,2]
[351653155,1738689033370,-500.0,0.00016438,2]
[351653157,1738689033381,-649.0401394,0.00016438,2]
[351653158,1738689033392,-500.0,0.00016438,2]
[351653161,1738689033402,-502.69434425,0.00016438,2]
[351653163,1738689033412,-500.0,0.00016438,2]
[351653164,1738689033422,-500.0,0.00016438,2]
[351653166,1738689033432,-500.0,0.00016438,2]
[351653168,1738689033442,-501.17598224,0.00016438,2]
[351653170,1738689033452,-500.0,0.00016438,2]
[351653172,1738689033464,-500.0,0.00016438,2]
[351653174,1738689033474,-500.0,0.00016438,2]
[351653176,1738689033484,-502.53416272,0.00016438,2]
[351653178,1738689033494,-500.0,0.00016438,2]
[351653180,1738689033505,-500.0,0.00016438,2]
[351653182,1738689033515,-500.0,0.00016438,2]
[351653184,1738689033524,-503.09008645,0.00016438,2]
[351653186,1738689033535,-501.97023757,0.00016438,2]
[351653189,1738689033545,-503.94424531,0.00016438,2]
[351653191,1738689033555,-500.0,0.00016438,2]
[351653193,1738689033565,-500.0,0.00016438,2]
[351653195,1738689033574,-501.65502639,0.00016438,2]
[351653197,1738689033584,-500.0,0.00016438,2]
[351653199,1738689033595,-500.0,0.00016438,2]
[351653201,1738689033605,-500.0,0.00016438,2]
[351653203,1738689033616,-500.0,0.00016438,2]
[351653205,1738689033626,-500.0,0.00016438,2]
[351653207,1738689033636,-500.0,0.00016438,2]
[351653209,1738689033646,-500.0,0.00016438,2]
[351653211,1738689033655,-500.0,0.00016438,2]
[351653213,1738689033666,-501.38079044,0.00016438,2]
[351653215,1738689033676,-500.0,0.00016438,2]
[351653217,1738689033686,-377.51110956,0.00016438,2]
[351653219,1738689033695,-504.78950885,0.00016438,2]
[351653221,1738689033704,-500.0,0.00016438,2]
[351653222,1738689033713,-500.0,0.00016438,2]
[351653224,1738689033723,-500.0,0.00016438,2]
[351653226,1738689033733,-500.0,0.00016438,2]
[351653228,1738689033743,-500.0,0.00016438,2]
[351653230,1738689033754,-200.59916371,0.00016438,2]
[351653232,1738689033764,-500.0,0.00016438,2]
[351653234,1738689033773,-500.0,0.00016438,2]
[351653236,1738689033782,-500.0,0.00016438,2]
[351653238,1738689033792,-500.0,0.00016438,2]
[351653240,1738689033803,-500.0,0.00016438,2]
[351653242,1738689033813,-500.0,0.00016438,2]
[351653244,1738689033824,-500.0,0.00016438,2]
[351653246,1738689033834,-500.0,0.00016438,2]
[351653248,1738689033844,-500.0,0.00016438,2]
[351653250,1738689033854,-500.0,0.00016438,2]
[351653252,1738689033865,-508.62066582,0.00016438,2]
[351653254,1738689033881,-500.0,0.00016438,2]
[351653256,1738689033891,-500.0,0.00016438,2]
[351653258,1738689033901,-278.10118526,0.00016438,2]
[351653260,1738689033914,-500.0,0.00016438,2]
[351653262,1738689033924,-500.0,0.00016438,2]
[351653265,1738689033934,-500.0,0.00016438,2]
[351653267,1738689033944,-500.0,0.00016438,2]
[351653269,1738689033956,-500.0,0.00016438,2]
[351653271,1738689033967,-500.0,0.00016438,2]
[351653273,1738689033978,-500.0,0.00016438,2]
[351653275,1738689033988,-500.0,0.00016438,2]
[351653292,1738689034141,-500.0,0.00016438,2]
[351653294,1738689034151,-500.0,0.00016438,2]
[351653296,1738689034160,-500.0,0.00016438,2]
[351653298,1738689034169,-500.0,0.00016438,2]
[351653300,1738689034179,-500.0,0.00016438,2]
[351653302,1738689034189,-300.0,0.00016438,2]
[351653304,1738689034199,-500.0,0.00016438,2]
[351653306,1738689034209,-492.76477719,0.00016438,2]
[351653308,1738689034218,-500.0,0.00016438,2]
[351653310,1738689034228,-209.95370714,0.00016438,2]
[351653312,1738689034238,-500.0,0.00016438,2]
[351653314,1738689034248,-500.0,0.00016438,2]
[351653316,1738689034258,-500.0,0.00016438,2]
[351653318,1738689034268,-500.0,0.00016438,2]
[351653320,1738689034278,-500.23361003,0.00016438,2]
[351653322,1738689034287,-500.0,0.00016438,2]
[351653324,1738689034298,-1000.0,0.00016438,2]
[351653326,1738689034307,-151.0,0.00016438,2]
[351653328,1738689034317,-500.0,0.00016438,2]
[351653330,1738689034326,-158.078176,0.00016438,2]
[351653332,1738689034336,-500.0,0.00016438,2]
[351653334,1738689034346,-151.0,0.00016438,2]
[351653336,1738689034356,-151.0,0.00016438,2]
[351653338,1738689034371,-500.0,0.00016438,2]
[351653340,1738689034387,-151.0,0.00016438,2]
[351653342,1738689034403,-500.0,0.00016438,2]
[351653344,1738689034418,-500.0,0.00016438,2]
[351653346,1738689034432,-500.0,0.00016438,2]
[351653348,1738689034443,-500.0,0.00016438,2]
[351653350,1738689034454,-522.32232211,0.00016438,2]
[351653352,1738689034465,-500.0,0.00016438,2]
[351653354,1738689034477,-500.0,0.00016438,2]
[351653356,1738689034488,-500.0,0.00016438,2]
[351653359,1738689034499,-500.0,0.00016438,2]
[351653360,1738689034510,-500.0,0.00016438,2]
[351653363,1738689034521,-500.0,0.00016438,2]
[351653365,1738689034531,-500.0,0.00016438,2]
[351653367,1738689034542,-500.0,0.00016438,2]
[351653368,1738689034553,-500.0,0.00016438,2]
[351653371,1738689034564,-500.0,0.00016438,2]
[351653373,1738689034575,-500.0,0.00016438,2]
[351653375,1738689034585,-500.0,0.00016438,2]
[351653377,1738689034595,-500.0,0.00016438,2]
[351653378,1738689034605,-500.0,0.00016438,2]
[351653380,1738689034615,-500.0,0.00016438,2]
[351653382,1738689034626,-500.0,0.00016438,2]
[351653385,1738689034635,-500.0,0.00016438,2]
[351653387,1738689034645,-596.42671123,0.00016438,2]
[351653388,1738689034655,-500.0,0.00016438,2]
[351653390,1738689034665,-500.0,0.00016438,2]
[351653393,1738689034675,-500.0,0.00016438,2]
[351653394,1738689034686,-500.0,0.00016438,2]
[351653396,1738689034695,-500.0,0.00016438,2]
[351653398,1738689034705,-500.0,0.00016438,2]
[351653399,1738689034714,-500.0,0.00016438,2]
[351653401,1738689034724,-500.0,0.00016438,2]
[351653403,1738689034733,-500.0,0.00016438,2]
[351653405,1738689034742,-500.0,0.00016438,2]
[351653406,1738689034751,-500.0,0.00016438,2]
[351653408,1738689034761,-516.57576973,0.00016438,2]
[351653409,1738689034771,-500.0,0.00016438,2]
[351653410,1738689034782,-500.0,0.00016438,2]
[351653411,1738689034792,-500.0,0.00016438,2]
[351653412,1738689034802,-500.0,0.00016438,2]
[351653413,1738689034812,-500.0,0.00016438,2]
[351653414,1738689034822,-500.0,0.00016438,2]
[351653415,1738689034831,-500.0,0.00016438,2]
[351653416,1738689034841,-500.0,0.00016438,2]
[351653417,1738689034851,-500.0,0.00016438,2]
[351653418,1738689034864,-500.0,0.00016438,2]
[351653419,1738689034877,-501.78438965,0.00016438,2]
[351653420,1738689034887,-500.0,0.00016438,2]
[351653421,1738689034896,-500.0,0.00016438,2]
[351653422,1738689034905,-500.0,0.00016438,2]
[351653423,1738689034915,-500.0,0.00016438,2]
[351653424,1738689034924,-500.0,0.00016438,2]
[351653425,1738689034934,-500.0,0.00016438,2]
[351653426,1738689034943,-922.4,0.00016438,2]
[351653427,1738689034954,-500.0,0.00016438,2]
[351653428,1738689034965,-504.24960657,0.00016438,2]
[351653429,1738689034975,-500.0,0.00016438,2]
[351653430,1738689034985,-500.0,0.00016438,2]
[351653431,1738689034995,-500.0,0.00016438,2]
[351653432,1738689035006,-500.0,0.00016438,2]
[351653433,1738689035015,-500.0,0.00016438,2]
[351653434,1738689035025,-500.0,0.00016438,2]
[351653435,1738689035035,-500.0,0.00016438,2]
[351653436,1738689035046,-511.50051567,0.00016438,2]
[351653437,1738689035055,-502.47231185,0.00016438,2]
[351653438,1738689035064,-500.0,0.00016438,2]
[351653439,1738689035074,-500.0,0.00016438,2]
[351653440,1738689035084,-500.0,0.00016438,2]
[351653441,1738689035095,-500.0,0.00016438,2]
[351653442,1738689035110,-500.0,0.00016438,2]
[351653443,1738689035123,-500.0,0.00016438,2]
[351653444,1738689035133,-1217.7,0.00016438,2]
[351653445,1738689035144,-500.0,0.00016438,2]
[351653446,1738689035154,-500.0,0.00016438,2]
[351653447,1738689035164,-500.0,0.00016438,2]
[351653448,1738689035175,-500.0,0.00016438,2]
[351653449,1738689035185,-500.0,0.00016438,2]
[351653450,1738689035195,-168.525,0.00016438,2]
[351653451,1738689035205,-500.0,0.00016438,2]
[351653452,1738689035215,-486.90819191,0.00016438,2]
[351653453,1738689035225,-500.0,0.00016438,2]
[351653454,1738689035235,-500.0,0.00016438,2]